fUST/lending_fUST_20250726
["ID","MTS","AMOUNT","RATE_DAILY","PERIOD"]
[375089514,1753524640441,-460.0,0.00019452,2]
[375089515,1753524640450,-460.0,0.00019452,2]
[375089516,1753524640460,-460.0,0.00019452,2]
[375089517,1753524640469,-460.0,0.00019452,2]
[375089518,1753524640479,-867.33,0.00019452,2]
[375089519,1753524640489,-464.88709639,0.00019452,2]
[375089520,1753524640499,-562.83,0.00019452,2]
[375089521,1753524640508,-460.0,0.00019452,2]
[375089522,1753524640518,-460.0,0.00019452,2]
[375089523,1753524640528,-460.0,0.00019452,2]
[375089524,1753524640537,-460.0,0.00019452,2]
[375089525,1753524640547,-460.0,0.00019452,2]
[375089526,1753524640556,-819.09,0.00019452,2]
[375089527,1753524640566,-516.33,0.00019452,2]
[375089528,1753524640575,-460.0,0.00019452,2]
[375089529,1753524640585,-460.0,0.00019452,2]
[375089530,1753524640594,-368.10491681,0.00019452,2]
[375089531,1753524640603,-474.21,0.00019452,2]
[375089532,1753524640613,-460.0,0.00019452,2]
[375089533,1753524640622,-460.0,0.00019452,2]
[375089534,1753524640632,-3417.64,0.00019452,2]
[375089535,1753524640642,-501.20159682,0.00019452,2]
[375089536,1753524640651,-460.0,0.00019452,2]
[375089537,1753524640661,-3106.73,0.00019452,2]
[375089538,1753524640670,-460.0,0.00019452,2]
[375089539,1753524640680,-460.0,0.00019452,2]
[375089540,1753524640689,-2752.09,0.00019452,2]
[375089541,1753524640699,-460.0,0.00019452,2]
[375089542,1753524640709,-1103.46,0.00019452,2]
[375089543,1753524640718,-460.0,0.00019452,2]
[375089544,1753524640727,-460.0,0.00019452,2]
[375089545,1753524640737,-2082.92,0.00019452,2]
[375089546,1753524640746,-720.9,0.00019452,2]
[375089547,1753524640755,-460.0,0.00019452,2]
[375089548,1753524640765,-460.0,0.00019452,2]
[375089549,1753524640774,-7171.72,0.00019452,2]
[375089550,1753524640783,-460.0,0.00019452,2]
[375089551,1753524640793,-460.0,0.00019452,2]
[375089552,1753524640802,-460.0,0.00019452,2]
[375089553,1753524640811,-460.0,0.00019452,2]
[375089554,1753524640820,-1007.54,0.00019452,2]
[375089555,1753524640830,-460.0,0.00019452,2]
[375089556,1753524640839,-460.0,0.00019452,2]
[375089557,1753524640849,-719.35,0.00019452,2]
[375089558,1753524640858,-2022.73,0.00019452,2]
[375089559,1753524640868,-852.95,0.00019452,2]
[375089560,1753524640877,-460.0,0.00019452,2]
[375089561,1753524640887,-1007.24,0.00019452,2]
[375089562,1753524640896,-460.0,0.00019452,2]
[375089563,1753524640906,-609.39,0.00019452,2]
[375089564,1753524640915,-879.98,0.00019452,2]
[375089565,1753524640924,-835.25,0.00019452,2]
[375089566,1753524640933,-4064.27,0.00019452,2]
[375089567,1753524640943,-1719.9,0.00019452,2]
[375089568,1753524640955,-549.46,0.00019452,2]
[375089569,1753524640969,-460.0,0.00019452,2]
[375089570,1753524640979,-568.95,0.00019452,2]
[375089571,1753524640988,-4043.03,0.00019452,2]
[375089572,1753524640998,-460.0,0.00019452,2]
[375089573,1753524641008,-460.0,0.00019452,2]
[375089574,1753524641018,-460.0,0.00019452,2]
[375089575,1753524641028,-460.0,0.00019452,2]
[375089576,1753524641037,-460.0,0.00019452,2]
[375089577,1753524641047,-739.41,0.00019452,2]
[375089578,1753524641056,-646.27,0.00019452,2]
[375089579,1753524641066,-3673.84,0.00019452,2]
[375089580,1753524641075,-460.0,0.00019452,2]
[375089581,1753524641084,-696.35,0.00019452,2]
[375089582,1753524641093,-460.0,0.00019452,2]
[375089583,1753524641102,-460.0,0.00019452,2]
[375089584,1753524641111,-460.0,0.00019452,2]
[375089585,1753524641121,-460.0,0.00019452,2]
[375089586,1753524641131,-460.0,0.00019452,2]
[375089587,1753524641140,-720.32,0.00019452,2]
[375089588,1753524641150,-923.36,0.00019452,2]
[375089589,1753524641160,-1367.32,0.00019452,2]
[375089590,1753524641169,-2470.83,0.00019452,2]
[375089591,1753524641179,-11541.5,0.00019452,2]
[375089592,1753524641188,-460.0,0.00019452,2]
[375089593,1753524641197,-1094.96,0.00019452,2]
[375089594,1753524641207,-2440.18,0.00019452,2]
[375089595,1753524641216,-3385.3,0.00019452,2]
[375089596,1753524641226,-460.0,0.00019452,2]
[375089597,1753524641235,-460.0,0.00019452,2]
[375089598,1753524641244,-590.02,0.00019452,2]
[375089599,1753524641253,-460.0,0.00019452,2]
[375089600,1753524641263,-1097.57,0.00019452,2]
[375089601,1753524641272,-296.85447282,0.00019452,2]
[375089602,1753524641281,-460.0,0.00019452,2]
[375089603,1753524641290,-1856.23,0.00019452,2]
[375089604,1753524641299,-460.0,0.00019452,2]
[375089605,1753524641308,-460.0,0.00019452,2]
[375089606,1753524641318,-680.86,0.00019452,2]
[375089607,1753524641327,-3126.3,0.00019452,2]
[375089608,1753524641337,-684.17,0.00019452,2]
[375089609,1753524641346,-803.62,0.00019452,2]
[375089610,1753524641355,-460.0,0.00019452,2]
[375089611,1753524641365,-460.0,0.00019452,2]
[375089612,1753524641374,-1101.85,0.00019452,2]
[375089613,1753524641383,-1015.84,0.00019452,2]
[375089614,1753524641393,-1569.34,0.00019452,2]
[375089615,1753524641403,-572.62,0.00019452,2]
[375089616,1753524641414,-460.0,0.00019452,2]
[375089617,1753524641424,-460.0,0.00019452,2]
[375089618,1753524641433,-5201.26,0.00019452,2]
[375089619,1753524641442,-302.75782099,0.00019464,2]
[375089620,1753524641452,-421.487,0.00019467,2]
[375089621,1753524641462,-160.0,0.00019557,2]
[375089622,1753524641473,-160.0,0.00019557,2]
[375089623,1753524641482,-214.8008262,0.00019557,2]
[375089624,1753524641492,-840.57612966,0.00019557,2]
[375089625,1753524641501,-526.41699184,0.00019557,2]
[375089626,1753524641511,-231.25662632,0.00019557,2]
[375089627,1753524641521,-476.98041219,0.00019557,2]
[375089628,1753524641530,-160.0,0.00019557,2]
[375089629,1753524641539,-160.0,0.00019557,2]
[375089630,1753524641549,-160.0,0.00019557,2]
[375089631,1753524641558,-160.0,0.00019557,2]
[375089632,1753524641567,-12629.83479014,0.00019557,2]
[375089633,1753524641576,-312.16666667,0.00019557,2]
[375089634,1753524641586,-215.9757969,0.00019557,2]
[375089635,1753524641595,-160.0,0.00019558,2]
[375089636,1753524641605,-160.0,0.00019558,2]
[375089637,1753524641614,-4383.25886734,0.00019626,2]
[375089638,1753524641623,-302.75782099,0.00019655,2]
[375089639,1753524641633,-485.40378814,0.00019726,2]
[375089640,1753524641642,-460.0,0.00019726,2]
[375089641,1753524641652,-460.0,0.00019726,2]
[375089642,1753524641661,-460.0,0.00019726,2]
[375089643,1753524641670,-460.0,0.00019726,2]
[375089644,1753524641679,-460.0,0.00019726,2]
[375089645,1753524641688,-460.0,0.00019726,2]
[375089646,1753524641699,-460.0,0.00019726,2]
[375089647,1753524641708,-460.0,0.00019726,2]
[375089648,1753524641718,-460.0,0.00019726,2]
[375089649,1753524641727,-460.0,0.00019726,2]
[375089650,1753524641737,-490.99,0.00019726,2]
[375089651,1753524641746,-460.0,0.00019726,2]
[375089652,1753524641755,-397.38933981,0.00019726,2]
[375089653,1753524641765,-460.0,0.00019726,2]
[375089654,1753524641775,-695.61,0.00019726,2]
[375089655,1753524641788,-460.0,0.00019726,2]
[375089656,1753524641797,-460.0,0.00019726,2]
[375089657,1753524641807,-460.0,0.00019726,2]
[375089658,1753524641816,-460.0,0.00019726,2]
[375089659,1753524641826,-460.0,0.00019726,2]
[375089660,1753524641835,-460.0,0.00019726,2]
[375089661,1753524641845,-460.0,0.00019726,2]
[375089662,1753524641854,-460.0,0.00019726,2]
[375089663,1753524641863,-581.27,0.00019726,2]
[375089664,1753524641872,-460.0,0.00019726,2]
[375089665,1753524641882,-524.05,0.00019726,2]
[375089666,1753524641891,-154.60335011,0.00019726,2]
[375089667,1753524641901,-1015.62,0.00019726,2]
[375089668,1753524641911,-879.74,0.00019726,2]
[375089669,1753524641920,-460.0,0.00019726,2]
[375089670,1753524641929,-460.0,0.00019726,2]
[375089671,1753524641941,-460.0,0.00019726,2]
[375089672,1753524641951,-460.0,0.00019726,2]
[375089673,1753524641961,-460.0,0.00019726,2]
[375089674,1753524641975,-887.6,0.00019726,2]
[375089675,1753524641985,-460.0,0.00019726,2]
[375089676,1753524641995,-460.0,0.00019726,2]
[375089677,1753524642006,-460.0,0.00019726,2]
[375089678,1753524642016,-460.0,0.00019726,2]
[375089679,1753524642026,-460.0,0.00019726,2]
[375089680,1753524642036,-460.0,0.00019726,2]
[375089681,1753524642045,-460.0,0.00019726,2]
[375089682,1753524642055,-549.3,0.00019726,2]
[375089683,1753524642064,-460.0,0.00019726,2]
[375089684,1753524642073,-460.0,0.00019726,2]
[375089685,1753524642083,-460.0,0.00019726,2]
[375089686,1753524642092,-460.0,0.00019726,2]
[375089687,1753524642103,-460.0,0.00019726,2]
[375089688,1753524642114,-867.33,0.00019726,2]
[375089689,1753524642124,-562.83,0.00019726,2]
[375089690,1753524642133,-390.70756936,0.00019726,2]
[375089691,1753524642143,-460.0,0.00019726,2]
[375089692,1753524642153,-460.0,0.00019726,2]
[375089693,1753524642162,-200.324936,0.00019726,2]
[375089694,1753524642171,-460.0,0.00019726,2]
[375089695,1753524642181,-819.09,0.00019726,2]
[375089696,1753524642194,-516.33,0.00019726,2]
[375089697,1753524642204,-460.0,0.00019726,2]
[375089698,1753524642213,-474.21,0.00019726,2]
[375089699,1753524642306,-460.0,0.00019726,2]
[375089700,1753524642316,-479.11543137,0.00019726,2]
[375089701,1753524642325,-3417.64,0.00019726,2]
[375089702,1753524642335,-460.0,0.00019726,2]
[375089703,1753524642345,-3106.73,0.00019726,2]
[375089704,1753524642354,-460.0,0.00019726,2]
[375089705,1753524642363,-460.0,0.00019726,2]
[375089706,1753524642373,-2752.09,0.00019726,2]
[375089707,1753524642382,-460.0,0.00019726,2]
[375089708,1753524642392,-1103.46,0.00019726,2]
[375089709,1753524642401,-460.0,0.00019726,2]
[375089710,1753524642411,-460.0,0.00019726,2]
[375089711,1753524642420,-2082.92,0.00019726,2]
[375089712,1753524642429,-720.9,0.00019726,2]
[375089713,1753524642439,-460.0,0.00019726,2]
[375089714,1753524642448,-460.0,0.00019726,2]
[375089715,1753524642458,-7171.72,0.00019726,2]
[375089716,1753524642467,-460.0,0.00019726,2]
[375089717,1753524642476,-460.0,0.00019726,2]
[375089718,1753524642486,-460.0,0.00019726,2]
[375089719,1753524642495,-460.0,0.00019726,2]
[375089720,1753524642505,-1007.54,0.00019726,2]
[375089721,1753524642514,-460.0,0.00019726,2]
[375089722,1753524642524,-460.0,0.00019726,2]
[375089723,1753524642533,-719.35,0.00019726,2]
[375089724,1753524642542,-2022.73,0.00019726,2]
[375089725,1753524642552,-852.95,0.00019726,2]
[375089726,1753524642562,-460.0,0.00019726,2]
[375089727,1753524642571,-1007.24,0.00019726,2]
[375089728,1753524642581,-460.0,0.00019726,2]
[375089729,1753524642590,-609.39,0.00019726,2]
[375089730,1753524642599,-879.98,0.00019726,2]
[375089731,1753524642609,-835.25,0.00019726,2]
[375089732,1753524642619,-4064.27,0.00019726,2]
[375089733,1753524642629,-1719.9,0.00019726,2]
[375089734,1753524642638,-549.46,0.00019726,2]
[375089735,1753524642647,-460.0,0.00019726,2]
[375089736,1753524642657,-568.95,0.00019726,2]
[375089737,1753524642669,-4043.03,0.00019726,2]
[375089738,1753524642680,-460.0,0.00019726,2]
[375089739,1753524642689,-460.0,0.00019726,2]
[375089740,1753524642699,-460.0,0.00019726,2]
[375089742,1753524642708,-460.0,0.00019726,2]
[375089743,1753524642717,-739.41,0.00019726,2]
[375089744,1753524642727,-646.27,0.00019726,2]
[375089745,1753524642737,-3673.84,0.00019726,2]
[375089746,1753524642746,-460.0,0.00019726,2]
[375089747,1753524642755,-696.35,0.00019726,2]
[375089749,1753524642765,-460.0,0.00019726,2]
[375089750,1753524642774,-460.0,0.00019726,2]
[375089751,1753524642783,-460.0,0.00019726,2]
[375089752,1753524642793,-460.0,0.00019726,2]
[375089753,1753524642804,-720.32,0.00019726,2]
[375089754,1753524642813,-923.36,0.00019726,2]
[375089755,1753524642823,-1367.32,0.00019726,2]
[375089756,1753524642832,-2470.83,0.00019726,2]
[375089757,1753524642845,-11541.5,0.00019726,2]
[375089758,1753524642856,-460.0,0.00019726,2]
[375089759,1753524642865,-1094.96,0.00019726,2]
[375089760,1753524642875,-2440.18,0.00019726,2]
[375089761,1753524642884,-3385.3,0.00019726,2]
[375089762,1753524642894,-460.0,0.00019726,2]
[375089763,1753524642903,-470.14588571,0.00019726,2]
[375089764,1753524642913,-590.02,0.00019726,2]
[375089765,1753524642922,-469.33580098,0.00019726,2]
[375089766,1753524642932,-1097.57,0.00019726,2]
[375089767,1753524642941,-460.0,0.00019726,2]
[375089768,1753524642951,-1856.23,0.00019726,2]
[375089769,1753524642960,-460.0,0.00019726,2]
[375089770,1753524642974,-460.0,0.00019726,2]
[375089771,1753524642984,-680.86,0.00019726,2]
[375089772,1753524642993,-3126.3,0.00019726,2]
[375089773,1753524643003,-684.17,0.00019726,2]
[375089774,1753524643016,-803.62,0.00019726,2]
[375089775,1753524643026,-460.0,0.00019726,2]
[375089776,1753524643037,-460.0,0.00019726,2]
[375089777,1753524643047,-1101.85,0.00019726,2]
[375089778,1753524643057,-1015.84,0.00019726,2]
[375089779,1753524643067,-1569.34,0.00019726,2]
[375089780,1753524643076,-572.62,0.00019726,2]
[375089782,1753524643085,-460.0,0.00019726,2]
[375089783,1753524643095,-460.0,0.00019726,2]
[375089785,1753524643105,-5201.26,0.00019726,2]
[375089787,1753524643114,-454.13673149,0.00019845,4]
[375089789,1753524643125,-3000.0,0.000199,2]
[375089791,1753524643135,-3000.0,0.0001991,2]
[375089793,1753524643144,-3000.0,0.0001992,2]
[375089795,1753524643154,-677.0,0.00019929,2]
[375089796,1753524643163,-3000.0,0.0001993,2]
[375089797,1753524643173,-3000.0,0.0001994,2]
[375089798,1753524643182,-3000.0,0.0001995,2]
[375089799,1753524643191,-3000.0,0.0001996,2]
[375089800,1753524643201,-677.0,0.00019969,2]
[375089801,1753524643210,-3000.0,0.0001997,2]
[375089802,1753524643220,-241.23808633,0.00019973,2]
[375089803,1753524643230,-501.05926252,0.00019973,2]
[375089804,1753524643239,-501.17495243,0.00019973,2]
[375089805,1753524643249,-500.0,0.00019973,2]
[375089806,1753524643258,-500.0,0.00019973,2]
[375089807,1753524643267,-160.33996799,0.00019973,2]
[375089808,1753524643276,-516.03347122,0.00019973,2]
[375089810,1753524643286,-1155.7430388,0.00019973,2]
[375089811,1753524643295,-577.8715194,0.00019973,2]
[375089813,1753524643307,-577.8715194,0.00019973,2]
[375089815,1753524643316,-3000.0,0.0001998,2]
[375089816,1753524643326,-3158.917305,0.0001999,2]
[375089817,1753524643335,-55913.44178683,0.0001999,2]
[375089818,1753524643345,-677.0,0.00019992,2]
[375089819,1753524643355,-471.79738491,0.0002,2]
[375089820,1753524643364,-460.0,0.0002,2]
[375089821,1753524643374,-460.0,0.0002,2]
[375089822,1753524643384,-460.0,0.0002,2]
[375089823,1753524643394,-460.0,0.0002,2]
[375089824,1753524643403,-460.0,0.0002,2]
[375089825,1753524643412,-460.0,0.0002,2]
[375089826,1753524643422,-460.0,0.0002,2]
[375089827,1753524643431,-460.0,0.0002,2]
[375089828,1753524643440,-460.0,0.0002,2]
[375089829,1753524643451,-151.0,0.0002,2]
[375089830,1753524643461,-151.0,0.0002,2]
[375089831,1753524643471,-490.99,0.0002,2]
[375089832,1753524643482,-480.36570627,0.0002,2]
[375089833,1753524643492,-202.27534398,0.0002,2]
[375089834,1753524643503,-151.0,0.0002,2]
[375089835,1753524643514,-151.0,0.0002,2]
[375089836,1753524643525,-151.0,0.0002,2]
[375089837,1753524643535,-202.67053542,0.0002,2]
[375089838,1753524643544,-151.0,0.0002,2]
[375089839,1753524643554,-151.0,0.0002,2]
[375089840,1753524643563,-151.0,0.0002,2]
[375089841,1753524643573,-151.4718976,0.0002,2]
[375089842,1753524643582,-151.0,0.0002,2]
[375089843,1753524643592,-151.0,0.0002,2]
[375089844,1753524643601,-151.0,0.0002,2]
[375089845,1753524643612,-248.75819819,0.0002,2]
[375089846,1753524643622,-695.61,0.0002,2]
[375089847,1753524643631,-303.59129076,0.0002,2]
[375089848,1753524643641,-460.0,0.0002,2]
[375089849,1753524643651,-279.27606718,0.0002,2]
[375089850,1753524643660,-460.0,0.0002,2]
[375089851,1753524643670,-460.0,0.0002,2]
[375089852,1753524643679,-460.0,0.0002,2]
[375089853,1753524643689,-581.27,0.0002,2]
[375089854,1753524643699,-460.0,0.0002,2]
[375089855,1753524643708,-524.05,0.0002,2]
[375089856,1753524643717,-1015.62,0.0002,2]
[375089857,1753524643726,-879.74,0.0002,2]
[375089858,1753524643735,-460.0,0.0002,2]
[375089859,1753524643744,-460.0,0.0002,2]
[375089860,1753524643754,-460.0,0.0002,2]
[375089861,1753524643764,-460.0,0.0002,2]
[375089862,1753524643773,-460.0,0.0002,2]
[375089863,1753524643783,-887.6,0.0002,2]
[375089864,1753524643792,-460.0,0.0002,2]
[375089865,1753524643802,-460.0,0.0002,2]
[375089866,1753524643812,-460.0,0.0002,2]
[375089867,1753524643821,-460.0,0.0002,2]
[375089868,1753524643831,-460.0,0.0002,2]
[375089869,1753524643839,-460.0,0.0002,2]
[375089870,1753524643849,-549.3,0.0002,2]
[375089871,1753524643858,-460.0,0.0002,2]
[375089872,1753524643868,-460.0,0.0002,2]
[375089873,1753524643878,-460.0,0.0002,2]
[375089874,1753524643887,-460.0,0.0002,2]
[375089875,1753524643896,-460.0,0.0002,2]
[375089876,1753524643906,-867.33,0.0002,2]
[375089877,1753524643915,-151.0,0.0002,2]
[375089878,1753524643924,-743.0,0.0002,2]
[375089879,1753524643934,-562.83,0.0002,2]
[375089880,1753524643943,-151.0,0.0002,2]
[375089881,1753524643953,-153.19288286,0.0002,2]
[375089882,1753524643963,-151.0,0.0002,2]
[375089883,1753524643983,-151.0,0.0002,2]
[375089884,1753524643996,-152.20337923,0.0002,2]
[375089885,1753524644006,-151.0,0.0002,2]
[375089886,1753524644015,-151.0,0.0002,2]
[375089887,1753524644025,-220.17848307,0.0002,2]
[375089888,1753524644034,-460.0,0.0002,2]
[375089889,1753524644044,-151.0,0.0002,2]
[375089890,1753524644054,-151.0,0.0002,2]
[375089891,1753524644064,-460.0,0.0002,2]
[375089892,1753524644073,-819.09,0.0002,2]
[375089893,1753524644083,-516.33,0.0002,2]
[375089894,1753524644201,-457.44302203,0.0002,2]
[375089895,1753524644221,-474.21,0.0002,2]
[375089896,1753524644231,-460.0,0.0002,2]
[375089897,1753524644240,-3417.64,0.0002,2]
[375089898,1753524644249,-460.0,0.0002,2]
[375089899,1753524644260,-3106.73,0.0002,2]
[375089900,1753524644269,-460.0,0.0002,2]
[375089901,1753524644278,-460.0,0.0002,2]
[375089902,1753524644288,-2752.09,0.0002,2]
[375089903,1753524644298,-460.0,0.0002,2]
[375089904,1753524644307,-632.0,0.0002,2]
[375089905,1753524644316,-1103.46,0.0002,2]
[375089906,1753524644325,-580.10195471,0.0002,2]
[375089907,1753524644335,-460.0,0.0002,2]
[375089908,1753524644344,-2082.92,0.0002,2]
[375089909,1753524644354,-152.35444116,0.0002,2]
[375089910,1753524644365,-720.9,0.0002,2]
[375089911,1753524644375,-550.62550737,0.0002,2]
[375089912,1753524644384,-460.0,0.0002,2]
[375089913,1753524644393,-7171.72,0.0002,2]
[375089914,1753524644403,-460.0,0.0002,2]
[375089915,1753524644413,-460.0,0.0002,2]
[375089916,1753524644422,-460.0,0.0002,2]
[375089917,1753524644432,-460.0,0.0002,2]
[375089918,1753524644441,-1007.54,0.0002,2]
[375089919,1753524644451,-460.0,0.0002,2]
[375089920,1753524644460,-460.0,0.0002,2]
[375089921,1753524644470,-719.35,0.0002,2]
[375089922,1753524644480,-2022.73,0.0002,2]
[375089923,1753524644489,-852.95,0.0002,2]
[375089924,1753524644499,-460.0,0.0002,2]
[375089925,1753524644508,-1007.24,0.0002,2]
[375089926,1753524644518,-460.0,0.0002,2]
[375089927,1753524644528,-609.39,0.0002,2]
[375089928,1753524644538,-879.98,0.0002,2]
[375089929,1753524644548,-151.31387012,0.0002,2]
[375089930,1753524644557,-151.0,0.0002,2]
[375089931,1753524644566,-835.25,0.0002,2]
[375089932,1753524644576,-151.0,0.0002,2]
[375089933,1753524644585,-4064.27,0.0002,2]
[375089934,1753524644595,-1719.9,0.0002,2]
[375089935,1753524644604,-152.08575023,0.0002,2]
[375089936,1753524644614,-152.402634,0.0002,2]
[375089937,1753524644624,-549.46,0.0002,2]
[375089938,1753524644634,-152.48276809,0.0002,2]
[375089939,1753524644644,-460.0,0.0002,2]
[375089940,1753524644654,-151.0,0.0002,2]
[375089941,1753524644663,-568.95,0.0002,2]
[375089942,1753524644673,-151.0,0.0002,2]
[375089943,1753524644683,-4043.03,0.0002,2]
[375089944,1753524644692,-460.0,0.0002,2]
[375089945,1753524644702,-160.0,0.0002,3]
[375089946,1753524644711,-460.0,0.0002,2]
[375089947,1753524644720,-151.0,0.0002,2]
[375089948,1753524644729,-151.0,0.0002,2]
[375089949,1753524644739,-461.88004887,0.0002,2]
[375089950,1753524644749,-151.0,0.0002,2]
[375089951,1753524644759,-460.0,0.0002,2]
[375089952,1753524644770,-151.0,0.0002,2]
[375089953,1753524644779,-151.0,0.0002,2]
[375089954,1753524644789,-739.41,0.0002,2]
[375089955,1753524644799,-646.27,0.0002,2]
[375089956,1753524644808,-3673.84,0.0002,2]
[375089957,1753524644817,-460.0,0.0002,2]
[375089958,1753524644827,-696.35,0.0002,2]
[375089959,1753524644836,-460.0,0.0002,2]
[375089960,1753524644849,-568.86545722,0.0002,2]
[375089961,1753524644859,-460.0,0.0002,2]
[375089962,1753524644869,-460.0,0.0002,2]
[375089963,1753524644879,-720.32,0.0002,2]
[375089964,1753524644888,-923.36,0.0002,2]
[375089965,1753524644898,-1367.32,0.0002,2]
[375089966,1753524644909,-2470.83,0.0002,2]
[375089967,1753524644918,-11541.5,0.0002,2]
[375089968,1753524644928,-460.0,0.0002,2]
[375089969,1753524644937,-1094.96,0.0002,2]
[375089970,1753524644946,-2440.18,0.0002,2]
[375089971,1753524644956,-3385.3,0.0002,2]
[375089972,1753524644969,-460.0,0.0002,2]
[375089973,1753524644979,-590.02,0.0002,2]
[375089974,1753524644988,-1097.57,0.0002,2]
[375089975,1753524644997,-460.0,0.0002,2]
[375089976,1753524645007,-1856.23,0.0002,2]
[375089977,1753524645017,-460.0,0.0002,2]
[375089978,1753524645026,-460.0,0.0002,2]
[375089979,1753524645036,-680.86,0.0002,2]
[375089980,1753524645046,-3126.3,0.0002,2]
[375089981,1753524645056,-684.17,0.0002,2]
[375089982,1753524645065,-803.62,0.0002,2]
[375089983,1753524645075,-460.0,0.0002,2]
[375089984,1753524645084,-460.0,0.0002,2]
[375089985,1753524645093,-1101.85,0.0002,2]
[375089986,1753524645103,-1015.84,0.0002,2]
[375089987,1753524645112,-572.62,0.0002,2]
[375089988,1753524645122,-1569.34,0.0002,2]
[375089989,1753524645132,-460.0,0.0002,2]
[375089990,1753524645142,-460.0,0.0002,2]
[375089991,1753524645151,-5201.26,0.0002,2]
[375089992,1753524645160,-454.13673149,0.00020036,4]
[375089993,1753524645169,-204.231,0.00020106,2]
[375089994,1753524645178,-249.206,0.00020106,2]
[375089995,1753524645187,-150.334,0.00020133,2]
[375089996,1753524645196,-150.0,0.00020133,2]
[375089997,1753524645205,-151.137,0.00020133,2]
[375089998,1753524645215,-649.826,0.00020133,2]
[375089999,1753524645225,-2157.0,0.00020133,2]
[375090000,1753524645234,-969.0,0.00020133,2]
[375090001,1753524645243,-569.0902347,0.00020164,2]
[375090002,1753524645252,-153.0,0.00020164,2]
[375090003,1753524645261,-153.0,0.00020164,2]
[375090004,1753524645270,-153.0,0.00020164,2]
[375090005,1753524645281,-175.4018,0.00020187,2]
[375090006,1753524645291,-677.0,0.0002019,2]
[375090007,1753524645301,-173.11223125,0.00020227,4]
[375090008,1753524645310,-460.0,0.00020273,2]
[375090009,1753524645319,-460.0,0.00020273,2]
[375090010,1753524645328,-254.29528754,0.00020273,2]
[375090011,1753524645337,-407.04041082,0.00020273,2]
[375090012,1753524645347,-460.0,0.00020273,2]
[375090013,1753524645356,-460.0,0.00020273,2]
[375090014,1753524645366,-354.62158023,0.00020273,2]
[375090015,1753524645375,-490.99,0.00020273,2]
[375090016,1753524645385,-695.61,0.00020273,2]
[375090017,1753524645394,-460.0,0.00020273,2]
[375090018,1753524645404,-460.0,0.00020273,2]
[375090019,1753524645414,-460.0,0.00020273,2]
[375090020,1753524645423,-460.0,0.00020273,2]
[375090021,1753524645433,-581.27,0.00020273,2]
[375090022,1753524645443,-460.0,0.00020273,2]
[375090023,1753524645452,-524.05,0.00020273,2]
[375090024,1753524645461,-1015.62,0.00020273,2]
[375090025,1753524645471,-879.74,0.00020273,2]